[Event "EYCC Open-U12 2019"]
[Site "Bratislava"]
[Date "2019.08.06"]
[Round "5.53"]
[White "Stogr, Viktor"]
[Black "De Reese, Elias"]
[Result "0-1"]
[ECO "B07"]
[WhiteElo "1583"]
[BlackElo "1850"]
[Annotator "NA"]
[PlyCount "62"]
[EventDate "2019.08.02"]
[EventType "swiss"]
[EventCountry "SVK"]
[SourceTitle "playchess.com"]
[Source "ChessBase"]
[SourceQuality "1"]
[TimeControl "40/5400+30:1800+30"]

1. e4 {[%emt 0:00:00]} d6 {[%emt 0:00:00]} 2. d4 {[%emt 0:00:00]} Nf6 {[%emt 0:00:00]} 3. Nc3 {[%emt 0:00:34]} Nbd7 {[%emt 0:00:00]} 4. Nf3 {[%emt 0:00:50]} e5 {[%emt 0:00:00]} 5. dxe5 {[%emt 0:00:33]} dxe5 {[%emt 0:00:00]} 6. Bd3 {[%emt 0:04:12]} Bc5 {[%emt 0:01:19]} 7. Bd2 {[%emt 0:01:53]} O-O {[%emt 0:01:51]} 8. O-O {[%emt 0:00:24]} c6 {[%emt 0:01:59]} 9. h3 {[%emt 0:02:45]} b5 {[%emt 0:02:39]} 10. Ne2 {[%emt 0:09:31]} a5 {[%emt 0:09:43]} 11. Ng3 {[%emt 0:06:55]} Re8 {[%emt 0:08:02]} 12. Qe2 {[%emt 0:07:57]} Bb6 {[%emt 0:04:57]} 13. Nf5 {[%emt 0:06:11]} Nc5 {[%emt 0:04:48]} 14. Ne1 {[%emt 0:07:37]} Bxf5 {[%emt 0:01:29]} 15. exf5 {[%emt 0:03:10]} e4 {[%emt 0:00:39]} 16. Bxb5 {[%emt 0:07:12]} cxb5 {[%emt 0:00:40]} 17. Qxb5 {[%emt 0:01:45]} Qxd2 {[%emt 0:03:05]} 18. Qxb6 {[%emt 0:00:42]} Qb4 {[%emt 0:00:16]} 19. Qc7 {[%emt 0:11:29]} Rac8 {[%emt 0:00:34]} 20. Qh2 {[%emt 0:00:58]} Qxb2 {[%emt 0:00:25]} 21. Rd1 {[%emt 0:00:35]} Qxa2 {[%emt 0:00:26]} 22. g4 {[%emt 0:01:50]} Qb2 {[%emt 0:07:08]} 23. f4 {[%emt 0:07:48]} e3 {[%emt 0:01:09]} 24. Rf3 {[%emt 0:09:24]} e2 {[%emt 0:00:19]} 25. Rd2 {[%emt 0:02:38]} Qc1 {[%emt 0:00:22]} 26. Rxe2 {[%emt 0:00:46]} Rxe2 {[%emt 0:00:17]} 27. Qxe2 {[%emt 0:00:05]} Re8 {[%emt 0:00:19]} 28. g5 {[%emt 0:04:56]} Rxe2 {[%emt 0:00:26]} 29. gxf6 {[%emt 0:00:18]} Qxe1+ {[%emt 0:00:07]} 30. Rf1 {[%emt 0:00:15]} Qg3+ {[%emt 0:00:02]} 31. Kh1 {[%emt 0:00:18]} Qg2# {[%emt 0:00:07]} 0-1

[Event "EYCC Open-U12 2019"]
[Site "Bratislava"]
[Date "2019.08.06"]
[Round "5.54"]
[White "Gregoric, Andraz"]
[Black "Ortiz Padro, Pol"]
[Result "1-0"]
[ECO "B01"]
[WhiteElo "1911"]
[BlackElo "1546"]
[Annotator "NA"]
[PlyCount "95"]
[EventDate "2019.08.02"]
[EventType "swiss"]
[EventCountry "SVK"]
[SourceTitle "playchess.com"]
[Source "ChessBase"]
[SourceQuality "1"]
[TimeControl "40/5400+30:1800+30"]

1. e4 d5 2. exd5 Qxd5 3. Nc3 Qa5 4. d4 Nf6 5. Nf3 Nc6 6. Bb5 Bd7 7. O-O O-O-O 8. h3 h6 9. Bxc6 Bxc6 10. Ne5 Be8 11. Be3 Nd7 12. Nc4 Qa6 13. Qe2 Nb6 14. Nxb6+ Qxb6 15. Rab1 Qg6 16. Qg4+ Qxg4 17. hxg4 Bd7 18. f3 g6 19. Rfd1 Bg7 20. Ne4 b6 21. c4 f5 22. gxf5 Bxf5 23. Rbc1 Bxe4 24. fxe4 e5 25. d5 Bf8 26. Rf1 Be7 27. Rf7 Rd7 28. Rcf1 Bc5 29. Bxc5 Rxf7 30. Rxf7 bxc5 31. Rf6 Rd8 32. Rxg6 Rd6 33. Rxd6 cxd6 34. Kf2 Kd7 35. Kf3 Ke7 36. Kg4 Kf6 37. Kh5 Kg7 38. a3 a5 39. b3 Kh7 40. g4 Kg7 41. g5 hxg5 42. Kxg5 Kf7 43. Kf5 Ke7 44. Kg6 Kd7 45. Kf7 Kc7 46. Ke7 Kb6 47. Kxd6 a4 48. bxa4 1-0

[Event "EYCC Open-U12 2019"]
[Site "Bratislava"]
[Date "2019.08.07"]
[Round "6.1"]
[White "Petrovskiy, Vadim"]
[Black "Piliposyan, Robert"]
[Result "0-1"]
[ECO "B18"]
[WhiteElo "2090"]
[BlackElo "2156"]
[Annotator "NA"]
[PlyCount "58"]
[EventDate "2019.08.02"]
[EventType "swiss"]
[EventCountry "SVK"]
[SourceTitle "playchess.com"]
[Source "ChessBase"]
[SourceQuality "1"]
[TimeControl "40/5400+30:1800+30"]

1. e4 {[%emt 0:00:00]} c6 {[%emt 0:00:00]} 2. d4 {[%emt 0:00:00]} d5 {[%emt 0:00:05]} 3. Nc3 {[%emt 0:00:09]} dxe4 {[%emt 0:00:05]} 4. Nxe4 {[%emt 0:00:13]} Bf5 {[%emt 0:00:13]} 5. Ng3 {[%emt 0:00:17]} Bg6 {[%emt 0:00:09]} 6. h4 {[%emt 0:00:07]} h6 {[%emt 0:00:04]} 7. Nf3 {[%emt 0:00:10]} e6 {[%emt 0:00:12]} 8. Ne5 {[%emt 0:02:04]} Bh7 {[%emt 0:00:15]} 9. Bc4 {[%emt 0:02:49]} Nd7 {[%emt 0:05:59]} 10. Qe2 {[%emt 0:04:13]} Nxe5 {[%emt 0:04:44]} 11. dxe5 {[%emt 0:01:06]} Ne7 {[%emt 0:00:32]} 12. O-O {[%emt 0:12:51]} Nf5 {[%emt 0:04:44]} 13. Rd1 {[%emt 0:09:11]} Qxh4 {[%emt 0:21:58]} 14. Ne4 {[%emt 0:02:14]} Rd8 {[%emt 0:05:56]} 15. Bg5 {[%emt 0:02:27]} hxg5 {[%emt 0:02:08]} 16. Rxd8+ {[%emt 0:00:07]} Kxd8 {[%emt 0:00:03]} 17. Rd1+ {[%emt 0:00:10]} Nd6 {[%emt 0:00:23]} 18. Ng3 {[%emt 0:01:57]} Kc7 {[%emt 0:01:41]} 19. Qd2 {[%emt 0:11:36]} Qxc4 {[%emt 0:27:43]} 20. Qa5+ {[%emt 0:02:02]} Kd7 {[%emt 0:04:49]} 21. Qxa7 {[%emt 0:00:36]} Qa6 {[%emt 0:00:37]} 22. Qb8 {[%emt 0:00:20]} c5 {[%emt 0:00:29]} 23. exd6 {[%emt 0:00:31]} Qc6 {[%emt 0:00:20]} 24. b4 {[%emt 0:03:16]} cxb4 {[%emt 0:03:10]} 25. a3 {[%emt 0:00:06]} Qc8 {[%emt 0:00:57]} 26. Qa7 {[%emt 0:00:09]} Bxc2 {[%emt 0:00:15]} 27. Rd2 {[%emt 0:01:03]} b3 {[%emt 0:00:26]} 28. Ne2 {[%emt 0:03:29]} b2 {[%emt 0:00:48]} 29. Nc3 {[%emt 0:00:04]} b1=Q+ {[%emt 0:00:23]} 0-1

[Event "EYCC Open-U12 2019"]
[Site "Bratislava"]
[Date "2019.08.07"]
[Round "6.2"]
[White "Vergara Anton, Diego"]
[Black "Maurizzi, Marc Andria"]
[Result "1/2-1/2"]
[ECO "E67"]
[WhiteElo "2183"]
[BlackElo "2412"]
[Annotator "NA"]
[PlyCount "52"]
[EventDate "2019.08.02"]
[EventType "swiss"]
[EventCountry "SVK"]
[SourceTitle "playchess.com"]
[Source "ChessBase"]
[SourceQuality "1"]
[TimeControl "40/5400+30:1800+30"]

1. d4 {[%emt 0:00:00]} Nf6 {[%emt 0:00:00]} 2. Nf3 {[%emt 0:00:03]} g6 {[%emt 0:00:00]} 3. g3 {[%emt 0:00:08]} Bg7 {[%emt 0:00:00]} 4. Bg2 {[%emt 0:00:06]} O-O {[%emt 0:00:00]} 5. O-O {[%emt 0:01:42]} d6 {[%emt 0:00:00]} 6. c4 {[%emt 0:00:53]} Nbd7 {[%emt 0:00:04]} 7. Nc3 {[%emt 0:01:08]} e5 {[%emt 0:00:09]} 8. dxe5 {[%emt 0:00:44]} dxe5 {[%emt 0:00:05]} 9. Qc2 {[%emt 0:00:59]} c6 {[%emt 0:00:33]} 10. Rd1 {[%emt 0:01:10]} Qe7 {[%emt 0:00:07]} 11. e4 {[%emt 0:03:23]} Ne8 {[%emt 0:00:29]} 12. Rb1 {[%emt 0:03:29]} Nc7 {[%emt 0:03:07]} 13. b4 {[%emt 0:04:27]} Ne6 {[%emt 0:01:55]} 14. c5 {[%emt 0:05:45]} f5 {[%emt 0:08:16]} 15. exf5 {[%emt 0:06:04]} gxf5 {[%emt 0:01:56]} 16. Ne2 {[%emt 0:05:38]} e4 {[%emt 0:06:12]} 17. Nfd4 {[%emt 0:01:42]} Ne5 {[%emt 0:00:53]} 18. Be3 {[%emt 0:13:14]} Ng4 {[%emt 0:27:16]} 19. Nxe6 {[%emt 0:01:16]} Nxe3 {[%emt 0:00:08]} 20. fxe3 {[%emt 0:00:01]} Bxe6 {[%emt 0:00:03]} 21. Nf4 {[%emt 0:01:58]} Rad8 {[%emt 0:05:38]} 22. Bf1 {[%emt 0:06:39]} Bf7 {[%emt 0:13:03]} 23. Bc4 {[%emt 0:03:50]} Be5 {[%emt 0:00:52]} 24. Bxf7+ {[%emt 0:12:24]} Qxf7 {[%emt 0:00:12]} 25. Rxd8 {[%emt 0:01:15]} Rxd8 {[%emt 0:00:03]} 26. Rd1 {[%emt 0:00:53]} Rxd1+ {[%emt 0:00:22]} 1/2-1/2

[Event "EYCC Open-U12 2019"]
[Site "Bratislava"]
[Date "2019.08.07"]
[Round "6.3"]
[White "Makridis, Dimitrios"]
[Black "Samadov, Read"]
[Result "1-0"]
[ECO "C10"]
[WhiteElo "1798"]
[BlackElo "2230"]
[Annotator "NA"]
[PlyCount "123"]
[EventDate "2019.08.02"]
[EventType "swiss"]
[EventCountry "SVK"]
[SourceTitle "playchess.com"]
[Source "ChessBase"]
[SourceQuality "1"]
[TimeControl "40/5400+30:1800+30"]

1. e4 {[%emt 0:00:00]} e6 {[%emt 0:00:00]} 2. d4 {[%emt 0:00:00]} d5 {[%emt 0:00:00]} 3. Nc3 {[%emt 0:00:00]} Nc6 {[%emt 0:00:06]} 4. Nf3 {[%emt 0:01:13]} Nf6 {[%emt 0:00:37]} 5. e5 {[%emt 0:00:07]} Ne4 {[%emt 0:00:19]} 6. Bd3 {[%emt 0:01:31]} Nxc3 {[%emt 0:01:05]} 7. bxc3 {[%emt 0:00:06]} h6 {[%emt 0:01:51]} 8. O-O {[%emt 0:04:29]} Na5 {[%emt 0:02:01]} 9. Ne1 {[%emt 0:09:41]} c5 {[%emt 0:06:37]} 10. Qg4 {[%emt 0:05:20]} Bd7 {[%emt 0:07:18]} 11. f4 {[%emt 0:04:29]} c4 {[%emt 0:06:30]} 12. Be2 {[%emt 0:00:20]} Nc6 {[%emt 0:01:16]} 13. Rb1 {[%emt 0:11:13]} b5 {[%emt 0:06:27]} 14. Nf3 {[%emt 0:09:57]} Qa5 {[%emt 0:03:48]} 15. Bd2 {[%emt 0:02:09]} Ne7 {[%emt 0:03:19]} 16. Rfc1 {[%emt 0:15:37]} Nf5 {[%emt 0:03:23]} 17. Qh3 {[%emt 0:00:52]} h5 {[%emt 0:04:09]} 18. g3 {[%emt 0:10:20]} Ba3 {[%emt 0:03:17]} 19. Rf1 {[%emt 0:00:42]} O-O-O {[%emt 0:03:43]} 20. Qg2 {[%emt 0:02:08]} f6 {[%emt 0:06:13]} 21. Qf2 {[%emt 0:02:12]} Qa4 {[%emt 0:07:17]} 22. Bd1 {[%emt 0:04:01]} Be7 {[%emt 0:01:25]} 23. Re1 {[%emt 0:02:51]} Qxa2 {[%emt 0:03:30]} 24. Be2 {[%emt 0:00:08]} Qa5 {[%emt 0:01:22]} 25. Bf1 {[%emt 0:01:41]} Qb6 {[%emt 0:03:57]} 26. Bh3 {[%emt 0:02:37]} Nh6 {[%emt 0:08:30]} 27. Qe2 {[%emt 0:00:55]} f5 {[%emt 0:00:24]} 28. Ra1 {[%emt 0:02:11]} Nf7 {[%emt 0:03:43]} 29. Bxf5 {[%emt 0:02:30]} exf5 30. e6 Nd6 {[%emt 0:02:39]} 31. exd7+ {[%emt 0:00:05]} Rxd7 {[%emt 0:00:01]} 32. Qe6 {[%emt 0:01:50]} Bf6 {[%emt 0:03:37]} 33. Ne5 {[%emt 0:00:47]} Bxe5 {[%emt 0:00:18]} 34. fxe5 {[%emt 0:00:01]} Ne8 {[%emt 0:00:35]} 35. Qxf5 {[%emt 0:01:46]} Nc7 {[%emt 0:01:32]} 36. e6 {[%emt 0:01:58]} Re7 {[%emt 0:00:19]} 37. Bf4 {[%emt 0:01:37]} g6 {[%emt 0:01:56]} 38. Bxc7 {[%emt 0:00:43]} Qxc7 {[%emt 0:02:24]} 39. Qxd5 {[%emt 0:00:05]} Qb7 {[%emt 0:00:19]} 40. Qc5+ {[%emt 0:00:00]} Rc7 {[%emt 0:00:00]} 41. Qe5 {[%emt 0:01:39]} Rd8 {[%emt 0:04:31]} 42. Rad1 {[%emt 0:01:09]} Qb6 {[%emt 0:01:16]} 43. Re3 {[%emt 0:01:24]} Re7 {[%emt 0:01:36]} 44. d5 {[%emt 0:01:30]} Qd6 {[%emt 0:00:15]} 45. Qd4 {[%emt 0:07:50]} g5 {[%emt 0:07:11]} 46. Re5 {[%emt 0:02:34]} h4 {[%emt 0:01:18]} 47. g4 {[%emt 0:02:34]} h3 {[%emt 0:04:52]} 48. Rxg5 {[%emt 0:01:49]} Rf8 {[%emt 0:03:40]} 49. Re5 {[%emt 0:06:48]} Rg8 {[%emt 0:05:42]} 50. Re4 {[%emt 0:02:05]} Rg5 {[%emt 0:01:23]} 51. Qh8+ {[%emt 0:03:43]} Kb7 {[%emt 0:00:34]} 52. Qxh3 {[%emt 0:00:57]} Rxd5 {[%emt 0:00:09]} 53. Rxd5 {[%emt 0:00:10]} Qxd5 {[%emt 0:00:01]} 54. Qf3 a5 {[%emt 0:02:20]} 55. Qf5 {[%emt 0:03:10]} Qd1+ {[%emt 0:03:05]} 56. Kf2 {[%emt 0:00:00]} Kc6 {[%emt 0:02:01]} 57. Rd4 {[%emt 0:00:12]} Qh1 {[%emt 0:00:06]} 58. Qe5 {[%emt 0:00:37]} Kb7 {[%emt 0:01:07]} 59. Qxb5+ {[%emt 0:00:13]} Ka7 {[%emt 0:00:02]} 60. Qc5+ {[%emt 0:00:43]} Ka6 {[%emt 0:00:06]} 61. Rd6+ {[%emt 0:00:19]} Kb7 {[%emt 0:00:07]} 62. Qb6+ {[%emt 0:00:05]} 1-0

[Event "EYCC Open-U12 2019"]
[Site "Bratislava"]
[Date "2019.08.07"]
[Round "6.4"]
[White "Meers, Hubert"]
[Black "Ozkan, Taha"]
[Result "0-1"]
[ECO "C07"]
[WhiteElo "2141"]
[BlackElo "2140"]
[Annotator "NA"]
[PlyCount "66"]
[EventDate "2019.08.02"]
[EventType "swiss"]
[EventCountry "SVK"]
[SourceTitle "playchess.com"]
[Source "ChessBase"]
[SourceQuality "1"]
[TimeControl "40/5400+30:1800+30"]

1. e4 {[%emt 0:00:00]} e6 {[%emt 0:00:00]} 2. d4 {[%emt 0:00:00]} d5 {[%emt 0:00:00]} 3. Nd2 {[%emt 0:00:00]} c5 {[%emt 0:00:00]} 4. exd5 {[%emt 0:00:00]} Qxd5 {[%emt 0:00:00]} 5. dxc5 {[%emt 0:00:09]} Bxc5 {[%emt 0:00:00]} 6. Ngf3 {[%emt 0:00:04]} Nf6 {[%emt 0:00:41]} 7. Bc4 {[%emt 0:00:04]} Qc6 {[%emt 0:01:03]} 8. O-O {[%emt 0:00:19]} O-O {[%emt 0:00:38]} 9. Qe2 {[%emt 0:00:09]} Qc7 {[%emt 0:02:04]} 10. Nb3 {[%emt 0:00:52]} Be7 {[%emt 0:02:54]} 11. Re1 {[%emt 0:07:31]} a6 {[%emt 0:02:13]} 12. a4 {[%emt 0:00:09]} Rd8 {[%emt 0:03:54]} 13. Bg5 {[%emt 0:10:23]} Bd7 {[%emt 0:03:52]} 14. Nbd4 {[%emt 0:04:32]} Nc6 {[%emt 0:04:42]} 15. c3 {[%emt 0:09:47]} Rac8 {[%emt 0:04:22]} 16. Nxc6 {[%emt 0:05:22]} Bxc6 {[%emt 0:04:13]} 17. Ne5 {[%emt 0:01:28]} Bd5 {[%emt 0:05:09]} 18. Bd3 {[%emt 0:07:10]} h6 {[%emt 0:20:24]} 19. Bf4 Bd6 {[%emt 0:02:39]} 20. Qe3 {[%emt 0:09:53]} Ng4 {[%emt 0:06:23]} 21. Qg3 {[%emt 0:11:54]} Nxe5 {[%emt 0:03:37]} 22. Bxe5 {[%emt 0:00:05]} Bxe5 {[%emt 0:01:03]} 23. Rxe5 {[%emt 0:00:29]} Bxg2 {[%emt 0:06:38]} 24. Bxa6 {[%emt 0:03:31]} bxa6 {[%emt 0:00:48]} 25. Kxg2 {[%emt 0:01:40]} Qb7+ {[%emt 0:00:42]} 26. Kh3 {[%emt 0:06:18]} Qxb2 {[%emt 0:04:34]} 27. Rg1 {[%emt 0:00:03]} Rxc3 {[%emt 0:00:33]} 28. Re3 {[%emt 0:00:51]} Rxe3 {[%emt 0:00:08]} 29. fxe3 {[%emt 0:00:06]} Rd5 {[%emt 0:01:27]} 30. Qf3 {[%emt 0:00:21]} Rf5 {[%emt 0:01:27]} 31. Qa8+ {[%emt 0:01:15]} Kh7 {[%emt 0:00:14]} 32. Qe4 {[%emt 0:00:03]} g6 {[%emt 0:01:37]} 33. Rg2 {[%emt 0:00:38]} Rh5+ {[%emt 0:00:23]} 0-1

[Event "EYCC Open-U12 2019"]
[Site "Bratislava"]
[Date "2019.08.07"]
[Round "6.5"]
[White "Fiszer, Bartosz"]
[Black "Makkar, Rajat"]
[Result "1/2-1/2"]
[ECO "C77"]
[WhiteElo "2124"]
[BlackElo "2064"]
[Annotator "NA"]
[PlyCount "109"]
[EventDate "2019.08.02"]
[EventType "swiss"]
[EventCountry "SVK"]
[SourceTitle "playchess.com"]
[Source "ChessBase"]
[SourceQuality "1"]
[TimeControl "40/5400+30:1800+30"]

1. e4 {[%emt 0:00:00]} e5 {[%emt 0:00:00]} 2. Nf3 {[%emt 0:00:00]} Nc6 {[%emt 0:00:14]} 3. Bb5 {[%emt 0:00:00]} a6 {[%emt 0:00:29]} 4. Ba4 {[%emt 0:00:06]} Nf6 {[%emt 0:00:18]} 5. d3 {[%emt 0:00:55]} d6 {[%emt 0:00:46]} 6. c3 {[%emt 0:00:10]} g6 {[%emt 0:00:35]} 7. O-O {[%emt 0:00:11]} Bg7 {[%emt 0:00:43]} 8. h3 {[%emt 0:01:31]} O-O {[%emt 0:00:59]} 9. Be3 {[%emt 0:01:11]} b5 {[%emt 0:02:03]} 10. Bc2 {[%emt 0:01:14]} Na5 {[%emt 0:03:19]} 11. b4 {[%emt 0:00:36]} Nb7 {[%emt 0:04:29]} 12. a4 {[%emt 0:00:43]} Bd7 {[%emt 0:02:24]} 13. Nbd2 {[%emt 0:05:12]} Re8 {[%emt 0:01:45]} 14. axb5 {[%emt 0:02:03]} axb5 {[%emt 0:01:45]} 15. Nb3 {[%emt 0:02:14]} Qe7 {[%emt 0:02:27]} 16. Ba7 {[%emt 0:17:33]} c5 {[%emt 0:04:21]} 17. Ra3 {[%emt 0:09:26]} Be6 {[%emt 0:06:07]} 18. Qa1 {[%emt 0:06:00]} cxb4 {[%emt 0:03:49]} 19. cxb4 {[%emt 0:00:04]} Rec8 {[%emt 0:00:29]} 20. Bd1 {[%emt 0:06:44]} Qc7 {[%emt 0:04:06]} 21. Nbd2 {[%emt 0:05:31]} Nd7 {[%emt 0:06:09]} 22. Ng5 {[%emt 0:12:54]} Nf8 {[%emt 0:03:20]} 23. Ndf3 {[%emt 0:04:01]} Nd8 {[%emt 0:03:45]} 24. Nxe6 {[%emt 0:00:48]} Nfxe6 {[%emt 0:00:29]} 25. Bb3 {[%emt 0:05:40]} Nf4 {[%emt 0:02:56]} 26. Rd1 {[%emt 0:01:03]} Nc6 {[%emt 0:03:40]} 27. Be3 {[%emt 0:00:02]} Qb7 {[%emt 0:01:07]} 28. Ng5 {[%emt 0:04:22]} Rxa3 {[%emt 0:04:24]} 29. Qxa3 {[%emt 0:00:01]} Rf8 {[%emt 0:01:00]} 30. Bxf4 {[%emt 0:05:34]} exf4 {[%emt 0:01:00]} 31. Bd5 {[%emt 0:00:01]} Qd7 {[%emt 0:03:08]} 32. Nf3 {[%emt 0:06:17]} Nd4 {[%emt 0:01:00]} 33. Nxd4 {[%emt 0:00:02]} Bxd4 34. Qa2 {[%emt 0:00:36]} f3 {[%emt 0:00:25]} 35. e5 {[%emt 0:00:12]} dxe5 {[%emt 0:01:45]} 36. Bxf3 {[%emt 0:00:02]} Bc3 {[%emt 0:03:43]} 37. Qd5 {[%emt 0:02:03]} Rd8 {[%emt 0:01:23]} 38. Qxd7 {[%emt 0:00:20]} Rxd7 {[%emt 0:00:36]} 39. Bc6 {[%emt 0:00:01]} Rd4 {[%emt 0:00:47]} 40. Bxb5 {[%emt 0:00:00]} Rxb4 {[%emt 0:00:00]} 41. Bc4 {[%emt 0:03:32]} Bd4 {[%emt 0:01:14]} 42. Rd2 {[%emt 0:01:16]} Rb1+ {[%emt 0:01:24]} 43. Kh2 {[%emt 0:00:03]} Rf1 {[%emt 0:00:21]} 44. g3 {[%emt 0:03:28]} Rxf2+ {[%emt 0:00:53]} 45. Rxf2 {[%emt 0:00:07]} Bxf2 {[%emt 0:00:07]} 46. Kg2 {[%emt 0:00:05]} Bd4 {[%emt 0:00:05]} 47. Kf3 {[%emt 0:00:32]} Kg7 {[%emt 0:00:14]} 48. g4 {[%emt 0:00:18]} f5 {[%emt 0:01:01]} 49. gxf5 {[%emt 0:02:19]} gxf5 {[%emt 0:01:17]} 50. Be6 {[%emt 0:00:25]} Kf6 {[%emt 0:00:58]} 51. Bg8 {[%emt 0:00:05]} h6 {[%emt 0:00:18]} 52. Bd5 {[%emt 0:00:18]} Ke7 {[%emt 0:01:32]} 53. Bg8 {[%emt 0:00:24]} Kd6 {[%emt 0:00:45]} 54. Bh7 {[%emt 0:00:07]} Ke6 {[%emt 0:00:03]} 55. Bg8+ {[%emt 0:00:04]} 1/2-1/2

[Event "EYCC Open-U12 2019"]
[Site "Bratislava"]
[Date "2019.08.07"]
[Round "6.6"]
[White "Bat, Bilguun"]
[Black "Milanovic, Marko"]
[Result "1-0"]
[ECO "A06"]
[WhiteElo "2093"]
[BlackElo "1814"]
[Annotator "NA"]
[PlyCount "119"]
[EventDate "2019.08.02"]
[EventType "swiss"]
[EventCountry "SVK"]
[SourceTitle "playchess.com"]
[Source "ChessBase"]
[SourceQuality "1"]
[TimeControl "40/5400+30:1800+30"]

1. Nf3 {[%emt 0:00:00]} d5 {[%emt 0:00:00]} 2. e3 {[%emt 0:00:00]} Nf6 {[%emt 0:00:00]} 3. c4 {[%emt 0:00:00]} e6 {[%emt 0:00:05]} 4. Nc3 {[%emt 0:00:00]} Be7 {[%emt 0:00:29]} 5. b3 {[%emt 0:00:14]} O-O {[%emt 0:00:13]} 6. Bb2 {[%emt 0:00:18]} c5 {[%emt 0:00:25]} 7. cxd5 {[%emt 0:00:08]} exd5 {[%emt 0:00:19]} 8. d4 {[%emt 0:00:19]} cxd4 {[%emt 0:01:27]} 9. Nxd4 {[%emt 0:00:48]} Nc6 {[%emt 0:00:50]} 10. Be2 {[%emt 0:00:48]} Qb6 {[%emt 0:05:51]} 11. Nxc6 {[%emt 0:03:25]} bxc6 {[%emt 0:00:23]} 12. O-O {[%emt 0:00:19]} Bf5 {[%emt 0:03:04]} 13. Rc1 {[%emt 0:04:44]} Rac8 {[%emt 0:05:09]} 14. Na4 {[%emt 0:02:13]} Qa5 {[%emt 0:04:27]} 15. Bc3 {[%emt 0:01:42]} Qc7 {[%emt 0:01:05]} 16. Bd4 {[%emt 0:02:34]} Ne4 {[%emt 0:04:43]} 17. Bf3 {[%emt 0:04:33]} Rfd8 {[%emt 0:04:22]} 18. Qe2 {[%emt 0:06:41]} Qa5 {[%emt 0:06:16]} 19. Bxe4 {[%emt 0:07:54]} Bxe4 {[%emt 0:00:28]} 20. Qb2 {[%emt 0:00:44]} f6 {[%emt 0:07:00]} 21. Nc5 {[%emt 0:02:08]} Bxc5 {[%emt 0:01:42]} 22. Rxc5 {[%emt 0:00:05]} Qa6 {[%emt 0:01:43]} 23. b4 {[%emt 0:02:04]} Rb8 {[%emt 0:10:12]} 24. Rfc1 {[%emt 0:03:59]} Rdc8 {[%emt 0:03:03]} 25. Qc3 {[%emt 0:10:56]} Qd3 {[%emt 0:14:35]} 26. Rxc6 {[%emt 0:04:04]} Qxc3 {[%emt 0:02:27]} 27. R6xc3 {[%emt 0:00:32]} Rxc3 {[%emt 0:00:31]} 28. Bxc3 {[%emt 0:00:02]} Bd3 {[%emt 0:02:12]} 29. Rd1 {[%emt 0:01:32]} Bc4 {[%emt 0:00:26]} 30. a3 {[%emt 0:00:51]} Kf7 {[%emt 0:00:36]} 31. f3 {[%emt 0:01:11]} Re8 {[%emt 0:01:58]} 32. Kf2 {[%emt 0:00:27]} f5 {[%emt 0:02:28]} 33. Rd2 {[%emt 0:03:18]} g6 {[%emt 0:01:18]} 34. h4 {[%emt 0:00:23]} a6 {[%emt 0:01:34]} 35. Bd4 {[%emt 0:00:51]} Rc8 {[%emt 0:01:02]} 36. Kg3 {[%emt 0:00:36]} Bb3 {[%emt 0:02:51]} 37. Bc5 {[%emt 0:04:35]} Bc4 {[%emt 0:02:20]} 38. Kf4 {[%emt 0:03:09]} Re8 {[%emt 0:01:50]} 39. a4 {[%emt 0:01:32]} Ke6 {[%emt 0:01:47]} 40. Kg5 {[%emt 0:00:00]} Kf7 {[%emt 0:00:00]} 41. Kh6 {[%emt 0:10:08]} Kg8 {[%emt 0:06:17]} 42. Rb2 {[%emt 0:07:25]} Rb8 {[%emt 0:00:30]} 43. h5 {[%emt 0:00:44]} Rc8 {[%emt 0:02:48]} 44. Bd4 {[%emt 0:04:14]} Kf7 {[%emt 0:02:50]} 45. b5 {[%emt 0:02:59]} axb5 {[%emt 0:00:35]} 46. axb5 {[%emt 0:00:05]} gxh5 {[%emt 0:00:34]} 47. b6 {[%emt 0:01:16]} Rb8 {[%emt 0:00:24]} 48. Kxh5 {[%emt 0:00:54]} Rb7 {[%emt 0:00:13]} 49. Rb1 {[%emt 0:00:38]} Ke6 {[%emt 0:00:40]} 50. Kg5 {[%emt 0:00:20]} Bd3 {[%emt 0:00:25]} 51. Rc1 {[%emt 0:00:15]} Bc4 {[%emt 0:00:39]} 52. Rh1 {[%emt 0:00:06]} Rf7 {[%emt 0:01:09]} 53. Rh6+ {[%emt 0:00:26]} Kd7 {[%emt 0:00:09]} 54. Be5 {[%emt 0:00:46]} Kc8 {[%emt 0:00:33]} 55. Rf6 {[%emt 0:05:52]} Rg7+ {[%emt 0:02:20]} 56. Kf4 {[%emt 0:01:09]} Rxg2 {[%emt 0:00:33]} 57. Rf8+ {[%emt 0:00:17]} Kb7 {[%emt 0:00:08]} 58. Bd4 {[%emt 0:01:01]} Bd3 {[%emt 0:01:29]} 59. Rf7+ {[%emt 0:00:17]} Kc6 {[%emt 0:00:43]} 60. Rc7+ {[%emt 0:00:12]} 1-0